bitfinex/quotes_BTCUSD_20251116
["timestamp","ask_amount","ask_price","bid_price","bid_amount"]
[1763282583473,0.20814036,96089.0,96088.0,0.09362468]
[1763282584481,0.29150036,96089.0,96088.0,0.09362468]
[1763282584641,0.29150036,96089.0,96088.0,0.09462468]
[1763282585635,0.29150036,96089.0,96088.0,0.09562468]
[1763282592925,0.08336,96089.0,96088.0,0.30376721]
[1763282593141,0.00024414,96098.0,96097.0,0.20812304]
[1763282593347,0.08360414,96098.0,96097.0,0.20812304]
[1763282595167,0.08360414,96098.0,96097.0,0.21012304]
[1763282595372,0.08360414,96098.0,96097.0,0.21212304]
[1763282600051,0.08360414,96098.0,96097.0,0.24338315]
[1763282600885,0.08360414,96098.0,96097.0,0.03526011]
[1763282601084,0.29172501,96098.0,96097.0,0.03526011]
[1763282602652,0.08360414,96098.0,96097.0,0.03526011]
[1763282603100,0.08360414,96098.0,96097.0,0.24338315]
[1763282606872,0.08336,96099.0,96098.0,0.20811898]
[1763282607237,0.08336,96103.0,96102.0,0.20811221]
[1763282608042,0.08336,96103.0,96102.0,0.03125734]
[1763282608253,0.29147004,96103.0,96102.0,0.03125734]
[1763282608840,0.29147004,96103.0,96102.0,0.03325734]
[1763282609158,0.29147004,96103.0,96102.0,0.03525734]
[1763282611592,0.08336,96103.0,96102.0,0.24336955]
[1763282611996,0.08336,96103.0,96102.0,0.03525734]
[1763282612235,0.29147004,96103.0,96102.0,0.03525734]
[1763282614687,0.08336,96103.0,96102.0,0.03525734]
[1763282614864,0.08336,96103.0,96102.0,0.24336955]
[1763282618727,0.08336,96104.0,96103.0,0.20811004]
[1763282619522,0.08336,96104.0,96103.0,0.23936738]
[1763282620374,0.08336,96104.0,96103.0,0.24136738]
[1763282620609,0.08336,96104.0,96103.0,0.24336738]
[1763282621209,0.08336,96104.0,96103.0,0.33699206]
[1763282621812,0.20806941,96108.0,96104.0,0.20810579]
[1763282622043,0.08336,96107.0,96104.0,0.20810579]
[1763282622252,0.08336,96107.0,96105.0,0.20810562]
[1763282622453,0.08336,96107.0,96106.0,0.20810355]
[1763282622885,0.08336,96107.0,96104.0,0.20810581]
[1763282623072,0.08336,96107.0,96106.0,0.03125734]
[1763282623408,0.29146138,96107.0,96106.0,0.03125734]
[1763282623844,0.29146138,96107.0,96106.0,0.03325734]
[1763282624825,0.29146138,96107.0,96106.0,0.03525734]
[1763282627395,0.08336,96107.0,96106.0,0.03525734]
[1763282627628,0.08336,96107.0,96106.0,0.24336089]
[1763282629227,0.0002,96110.0,96109.0,0.20809705]
[1763282629431,0.20807588,96119.0,96115.0,0.2080829]
[1763282629740,0.20827472,96120.0,96118.0,0.09362468]
[1763282629937,0.08336,96119.0,96118.0,0.09362468]
[1763282630094,0.2914354,96119.0,96118.0,0.09362468]
[1763282630298,0.2914354,96119.0,96118.0,0.12487892]
[1763282631624,0.08336,96119.0,96118.0,0.12587892]
[1763282631807,0.08336,96119.0,96118.0,0.33395649]
[1763282632003,0.0834256,96119.0,96118.0,0.12587892]
[1763282632208,0.0834256,96119.0,96118.0,0.12687892]
[1763282632776,0.0834256,96119.0,96118.0,0.33495649]
[1763282632925,0.0834256,96119.0,96118.0,0.12687892]
[1763282633106,0.291501,96119.0,96118.0,0.12687892]
[1763282633946,0.291501,96119.0,96118.0,0.10726892]
[1763282638320,0.0834256,96119.0,96118.0,0.10726892]
[1763282638748,0.08375103,96119.0,96118.0,0.10726892]
[1763282638960,0.29182643,96119.0,96118.0,0.10726892]
[1763282646272,0.29182643,96119.0,96118.0,0.07601468]
[1763282652410,0.32029643,96119.0,96118.0,0.07601468]
[1763282653535,0.30407643,96119.0,96118.0,0.07601468]
[1763282674978,0.00039103,96119.0,96118.0,0.07601468]
[1763282675257,0.29178643,96119.0,96118.0,0.10727023]
[1763282675666,0.00039103,96119.0,96118.0,0.3153478]
[1763282675906,0.08371103,96119.0,96118.0,0.3133478]
[1763282676127,0.08371103,96119.0,96118.0,0.3153478]
[1763282676377,0.08371103,96119.0,96118.0,0.3173478]
[1763282676558,0.08371103,96119.0,96118.0,0.3153478]
[1763282677321,0.08371103,96119.0,96118.0,0.3133478]
[1763282677733,0.08371103,96119.0,96118.0,0.3153478]
[1763282677933,0.08371103,96119.0,96118.0,0.3173478]
[1763282681862,0.29178643,96119.0,96118.0,0.10927023]
[1763282682855,0.08371103,96119.0,96118.0,0.10927023]
[1763282683099,0.08371103,96119.0,96118.0,0.3173478]
[1763282683442,0.08371103,96119.0,96118.0,0.10927023]
[1763282683654,0.29178643,96119.0,96118.0,0.10927023]
[1763282686310,0.08371103,96119.0,96118.0,0.3173478]
[1763282688068,0.08371103,96119.0,96118.0,0.10927023]
[1763282688409,0.29178643,96119.0,96118.0,0.10927023]
[1763282689206,0.08371103,96119.0,96118.0,0.3173478]
[1763282691386,0.08352,96120.0,96119.0,0.2080754]
[1763282692008,0.08352,96120.0,96119.0,0.23932717]
[1763282692216,0.20825315,96130.0,96126.0,0.20805849]
[1763282692350,0.08332,96129.0,96127.0,0.208056]
[1763282692562,0.08332,96129.0,96128.0,0.20805571]
[1763282692795,0.08332,96129.0,96128.0,0.23930572]
[1763282694515,0.08332,96129.0,96128.0,0.24030572]
[1763282694723,0.08332,96129.0,96128.0,0.24130572]
[1763282695550,0.08332,96129.0,96128.0,0.03325001]
[1763282695993,0.08332,96129.0,96128.0,0.24130593]
[1763282698539,0.08332,96130.0,96129.0,0.20805376]
[1763282698708,0.32902018,96140.0,96139.0,0.09362468]
[1763282698914,0.20823024,96140.0,96139.0,0.09362468]
[1763282699135,0.0002,96140.0,96139.0,0.12487238]
[1763282699307,0.2087993,96140.0,96139.0,0.12487238]
[1763282700144,0.00076935,96140.0,96139.0,0.12487238]
[1763282700351,0.2087993,96140.0,96139.0,0.12487238]
[1763282700718,0.2087993,96140.0,96139.0,0.12587238]
[1763282701095,0.2087993,96140.0,96139.0,0.12687238]
[1763282703328,0.00076935,96140.0,96139.0,0.12687238]
[1763282703696,0.2087993,96140.0,96139.0,0.12687238]
[1763282704299,0.00076935,96140.0,96139.0,0.12687238]
[1763282704502,0.2087993,96140.0,96139.0,0.12687238]
[1763282705222,0.00076935,96140.0,96139.0,0.12687238]
[1763282705420,0.2921193,96140.0,96139.0,0.12687238]
[1763282706453,0.2921193,96140.0,96139.0,0.09562468]
[1763282706808,0.2921193,96140.0,96139.0,0.12687362]
[1763282707397,0.2921193,96140.0,96139.0,0.09562468]
[1763282736869,0.08332,96140.0,96139.0,0.3036568]
[1763282737128,0.08332,96140.0,96139.0,0.33490222]
[1763282738623,0.08332,96140.0,96139.0,0.33390222]
[1763282738833,0.08332,96140.0,96139.0,0.33490222]
[1763282739248,0.08332,96140.0,96139.0,0.33690222]
[1763282740319,4e-05,96149.0,96148.0,0.20801264]
[1763282740534,0.00049022,96149.0,96148.0,0.20801264]
[1763282740778,0.00049022,96149.0,96144.0,0.20801931]
[1763282740980,0.00049022,96149.0,96148.0,0.03124376]
[1763282741797,0.00049022,96149.0,96148.0,0.2392564]
[1763282742229,0.00049022,96149.0,96148.0,0.03124376]
[1763282742643,0.00049022,96149.0,96148.0,0.2392564]
[1763282743245,0.00049022,96149.0,96148.0,0.2412564]
[1763282743890,0.00049022,96149.0,96148.0,0.03524376]
[1763282744133,0.2085007,96149.0,96148.0,0.03524376]
[1763282744561,0.00049022,96149.0,96148.0,0.03524376]
[1763282745398,0.08381022,96149.0,96148.0,0.03524376]
[1763282745709,0.08381022,96149.0,96148.0,0.2432564]
[1763282746059,0.08405414,96149.0,96148.0,0.2432564]
[1763282747516,0.00570069,96150.0,96148.0,0.2432564]
[1763282747517,0.08902069,96150.0,96149.0,0.20801048]
[1763282747657,0.00013499,96150.0,96149.0,0.25142922]
[1763282748304,0.00013499,96150.0,96149.0,0.2826695]
[1763282748769,0.00013499,96150.0,96149.0,0.2846695]
[1763282748975,0.00013499,96150.0,96149.0,0.3651493]
[1763282749192,0.0002,96160.0,96159.0,0.20798885]
[1763282749820,0.0002,96160.0,96159.0,0.21215391]
[1763282750358,0.0002,96160.0,96159.0,0.00416506]
[1763282750558,0.0002,96160.0,96159.0,0.21215391]
[1763282751562,0.0002,96160.0,96159.0,0.00616506]
[1763282751773,0.20818668,96160.0,96159.0,0.00616506]
[1763282752270,0.20818668,96160.0,96159.0,0.00816506]
[1763282752992,0.20818668,96160.0,96159.0,0.00616506]
[1763282753235,0.20818668,96160.0,96159.0,0.00816506]
[1763282753442,0.20848479,96160.0,96159.0,0.00616506]
[1763282753846,0.20848479,96160.0,96159.0,0.00816506]
[1763282754659,0.00049811,96160.0,96159.0,0.00816506]
[1763282754855,0.20798081,96163.0,96159.0,0.21615191]
[1763282755066,0.20798081,96163.0,96160.0,0.20798575]
[1763282755269,0.08332,96163.0,96160.0,0.20798575]
[1763282755489,0.08332,96163.0,96161.0,0.03123797]
[1763282755686,0.08332,96163.0,96161.0,0.23922213]
[1763282755952,0.29130083,96163.0,96161.0,0.03123797]
[1763282756158,0.20798236,96162.0,96161.0,0.03123797]
[1763282756362,0.20798668,96160.0,96159.0,0.002]
[1763282756803,0.20798668,96160.0,96157.0,0.20799298]
[1763282757036,0.20798668,96160.0,96159.0,0.03323797]
[1763282757552,0.20798668,96160.0,96159.0,0.03123797]
[1763282757702,0.29130083,96163.0,96159.0,0.2412261]
[1763282757933,0.08332,96163.0,96161.0,0.2099837]
[1763282758132,0.08332,96163.0,96161.0,0.2079837]
[1763282758332,0.08332,96163.0,96162.0,0.23922033]
[1763282760711,0.2913002,96163.0,96162.0,0.03323797]
[1763282760913,0.2913002,96163.0,96162.0,0.03523797]
[1763282766869,0.08332,96163.0,96162.0,0.03523797]
[1763282767269,0.2913002,96163.0,96162.0,0.03523797]
[1763282776287,0.2913002,96163.0,96162.0,0.004]
[1763282776848,0.2913002,96163.0,96162.0,0.00384263]
[1763282782703,0.3068902,96163.0,96162.0,0.00384263]
[1763282782913,0.20805159,96130.0,96124.0,0.146]
[1763282783112,0.2080754,96119.0,96118.0,0.09362468]
[1763282784612,0.2080754,96119.0,96118.0,0.09562468]
[1763282785044,0.2080754,96119.0,96118.0,0.09762468]
[1763282787204,0.00010291,96130.0,96118.0,0.09762468]
[1763282787413,0.24146799,96130.0,96119.0,0.02080754]
[1763282787632,0.20806764,96123.0,96120.0,0.02080732]
[1763282787845,0.20806891,96122.0,96121.0,0.0208071]
[1763282788056,0.20807324,96120.0,96119.0,0.02080754]
[1763282788925,0.20807324,96120.0,96118.0,0.09462468]
[1763282789311,0.08332,96119.0,96118.0,0.09462468]
[1763282789931,0.08332,96119.0,96118.0,0.09362468]
[1763282790951,0.08332,96119.0,96118.0,0.09662468]
[1763282791608,0.00010291,96130.0,96118.0,0.11743243]
[1763282791814,0.08332,96120.0,96119.0,0.25149414]
[1763282793435,0.08332,96120.0,96119.0,0.25349414]
[1763282793881,0.08332,96120.0,96119.0,0.25549414]
[1763282794289,0.08332,96120.0,96119.0,0.28674239]
[1763282799599,0.00010291,96130.0,96119.0,0.28674239]
[1763282799600,0.00010291,96130.0,96129.0,0.20805376]
[1763282799799,0.08342291,96130.0,96129.0,0.20805376]
[1763282800655,0.08342291,96130.0,96129.0,0.20905376]
[1763282801060,0.08342291,96130.0,96129.0,0.002]
[1763282801290,0.2914745,96130.0,96129.0,0.002]
[1763282809019,0.08342291,96130.0,96129.0,0.21005376]
[1763282809449,0.08342291,96130.0,96129.0,0.002]
[1763282809666,0.2914745,96130.0,96129.0,0.002]
[1763282809850,0.08342291,96130.0,96129.0,0.002]
[1763282810030,0.2914745,96130.0,96129.0,0.002]
[1763282810226,0.08342291,96130.0,96129.0,0.21005376]
[1763282810859,0.00010291,96130.0,96129.0,0.21005376]
[1763282811538,0.00010291,96130.0,96129.0,0.20905376]
[1763282811772,0.00010291,96130.0,96129.0,0.20805376]
[1763282811996,0.00010291,96130.0,96129.0,0.21005376]
[1763282812207,0.00010291,96130.0,96129.0,0.21105376]
[1763282812392,0.00010291,96130.0,96129.0,0.20805376]
[1763282812611,0.00010291,96130.0,96129.0,0.2514725]
[1763282812764,0.00010291,96130.0,96129.0,0.2554725]
[1763282812977,0.00010291,96130.0,96129.0,0.28671896]
[1763282813996,0.00010291,96130.0,96129.0,0.28471896]
[1763282814362,0.00010291,96130.0,96129.0,0.28671896]
[1763282814558,0.00010291,96130.0,96129.0,0.60971896]
[1763282814910,0.00010291,96130.0,96129.0,0.60771896]
[1763282815124,0.00010291,96130.0,96129.0,0.60971896]
[1763282820228,0.00010291,96130.0,96129.0,0.60771896]
[1763282821031,0.20800499,96152.0,96129.0,0.60771896]
[1763282821032,0.20799557,96156.0,96129.0,0.60771896]
[1763282821234,0.01039933,96160.0,96149.0,0.20801048]
[1763282821235,0.08332,96150.0,96149.0,0.20801048]
[1763282821890,0.08332,96150.0,96148.0,0.20801217]
[1763282822109,0.08332,96150.0,96149.0,0.20801048]
[1763282822518,0.08332,96150.0,96149.0,0.21001048]
[1763282822695,0.08332,96150.0,96149.0,0.20801048]
[1763282823054,0.08332,96150.0,96149.0,0.23925232]
[1763282824043,0.08332,96150.0,96149.0,0.24125232]
[1763282825141,0.08332,96150.0,96149.0,0.24325232]
[1763282825325,0.08332,96150.0,96149.0,0.24125232]
[1763282826178,0.25196333,96170.0,96159.0,0.09362468]
[1763282826518,0.08332,96168.0,96161.0,0.2079842]
[1763282826721,0.08332,96168.0,96159.0,0.09362468]
[1763282826916,0.29129154,96168.0,96159.0,0.09362468]
[1763282827122,0.20798668,96160.0,96159.0,0.09362468]
[1763282827329,0.20798668,96160.0,96159.0,0.09462468]
[1763282827718,0.20798498,96161.0,96159.0,0.09462468]
[1763282827939,0.20798668,96160.0,96159.0,0.09362468]
[1763282828362,0.20798668,96160.0,96159.0,0.09462468]
[1763282828786,0.20798668,96160.0,96159.0,0.09362468]
[1763282828962,0.20798668,96160.0,96159.0,0.09462468]
[1763282829167,0.20798668,96160.0,96159.0,0.09562468]
[1763282829363,0.20798668,96160.0,96159.0,0.09462468]
[1763282830064,0.20798668,96160.0,96159.0,0.09662468]
[1763282836281,0.20798668,96160.0,96159.0,0.09562468]
[1763282836463,0.20798668,96160.0,96159.0,0.09362468]
[1763282836675,0.20798668,96160.0,96159.0,0.09562468]
[1763282838433,0.22445668,96160.0,96159.0,0.09562468]
[1763282838995,0.22445668,96160.0,96159.0,0.09462468]
[1763282841397,0.22445668,96160.0,96159.0,0.09562468]
[1763282854557,0.20798668,96160.0,96159.0,0.09562468]
[1763282857877,0.29130668,96160.0,96159.0,0.09562468]
[1763282863642,0.30797668,96160.0,96159.0,0.09562468]
[1763282864289,0.30797668,96160.0,96159.0,0.002]
[1763282864485,0.63097668,96160.0,96159.0,0.002]
[1763282864800,0.6504686,96160.0,96159.0,0.002]
[1763282865374,0.6504686,96160.0,96159.0,0.001]
[1763282866197,0.20803212,96139.0,96119.0,0.03124956]
[1763282866405,0.22018212,96139.0,96138.0,0.0940749]
[1763282867303,0.22018212,96139.0,96138.0,0.0950749]
[1763282867801,0.22018212,96139.0,96138.0,0.0960749]
[1763282868380,0.30350212,96139.0,96138.0,0.0960749]
[1763282868572,0.29135212,96139.0,96138.0,0.0960749]
[1763282875044,0.32017212,96139.0,96138.0,0.00245022]
[1763282876046,0.32017212,96139.0,96138.0,0.00045022]
[1763282876254,0.2966109,96139.0,96138.0,0.00045022]
[1763282876451,0.3132809,96139.0,96138.0,0.00245022]
[1763282880782,0.2011409,96139.0,96138.0,0.00245022]
[1763282880987,0.2844609,96139.0,96138.0,0.00245022]
[1763282881744,0.2998509,96139.0,96138.0,0.00245022]
[1763282881949,0.2998509,96139.0,96138.0,0.00145022]
[1763282883217,0.2998509,96139.0,96138.0,0.00245022]
[1763282887250,0.2998509,96139.0,96138.0,0.00045022]
[1763282887467,0.2998509,96139.0,96138.0,0.00145022]
[1763282887809,0.2998509,96139.0,96138.0,0.00245022]
[1763282889744,0.2011409,96139.0,96138.0,0.00245022]
[1763282889964,0.2844609,96139.0,96138.0,0.00245022]
[1763282890330,0.2011409,96139.0,96138.0,0.00245022]
[1763282890529,0.2844609,96139.0,96138.0,0.00145022]
[1763282890726,0.2844609,96139.0,96138.0,0.00045022]
[1763282890931,0.2844609,96139.0,96138.0,0.00245022]
[1763282891458,0.2844609,96139.0,96138.0,0.00145022]
[1763282891669,0.2844609,96139.0,96138.0,0.00245022]
[1763282892259,0.2844609,96139.0,96138.0,0.00145022]
[1763282892663,0.2844609,96139.0,96138.0,0.00245022]
[1763282895785,0.2164509,96139.0,96138.0,0.00245022]
[1763282895998,0.2997709,96139.0,96138.0,0.00245022]
[1763282896716,0.2997709,96139.0,96138.0,0.00145022]
[1763282897036,0.2997709,96139.0,96138.0,0.00045022]
[1763282897328,0.2997709,96139.0,96138.0,0.00245022]
[1763282900848,0.2844609,96139.0,96138.0,0.00245022]
[1763282903194,0.2844609,96139.0,96138.0,0.00045022]
[1763282903550,0.2011409,96139.0,96138.0,0.00245022]
[1763282903719,0.2844609,96139.0,96138.0,0.00245022]
[1763282904732,0.2844609,96139.0,96138.0,0.00145022]
[1763282905335,0.08332,96139.0,96138.0,0.00145022]
[1763282905497,0.08332,96139.0,96138.0,0.00245022]
[1763282905693,0.29135212,96139.0,96138.0,0.00245022]
[1763282906075,0.08332,96139.0,96138.0,0.00145022]
[1763282906632,0.08332,96139.0,96138.0,0.24173139]
[1763282906849,0.08332,96139.0,96138.0,0.03369711]
[1763282907788,0.29135212,96139.0,96138.0,0.03469711]
[1763282910460,0.08332,96139.0,96138.0,0.03469711]
[1763282912393,0.29135212,96139.0,96138.0,0.03469711]
[1763282913317,0.08332,96139.0,96138.0,0.03469711]
[1763282913697,0.29135212,96139.0,96138.0,0.03469711]
[1763282914511,0.08332,96139.0,96138.0,0.03469711]
[1763282914683,0.29135212,96139.0,96138.0,0.03469711]
[1763282916867,0.08332,96139.0,96138.0,0.03469711]
[1763282917196,0.29135212,96139.0,96138.0,0.03469711]
[1763282919807,0.29135212,96139.0,96138.0,0.00345022]
[1763282920775,0.63049212,96139.0,96138.0,0.00045022]
[1763282920975,0.63049212,96139.0,96138.0,0.00345022]
[1763282921693,0.63049212,96139.0,96138.0,0.00145022]
[1763282921909,0.63049212,96139.0,96138.0,0.00045022]
[1763282922079,0.63049212,96139.0,96138.0,0.00145022]
[1763282922279,0.63049212,96139.0,96138.0,0.00245022]
[1763282923031,0.53103212,96139.0,96138.0,0.00245022]
[1763282923368,0.61435212,96139.0,96138.0,0.00245022]
[1763282925334,0.63049212,96139.0,96138.0,0.00245022]
[1763282927783,0.61435212,96139.0,96138.0,0.00245022]
[1763282929295,0.63049212,96139.0,96138.0,0.00245022]
[1763282929709,0.63049212,96139.0,96138.0,0.00145022]
[1763282930329,0.63049212,96139.0,96138.0,0.00245022]
[1763282936086,0.64213212,96139.0,96138.0,0.00245022]
[1763282938752,0.62599212,96139.0,96138.0,0.00245022]
[1763282939165,0.64213212,96139.0,96138.0,0.00245022]
[1763282942915,0.67338718,96139.0,96138.0,0.00245022]
[1763282943698,0.67338718,96139.0,96138.0,0.00145022]
[1763282944107,0.67338718,96139.0,96138.0,0.00245022]
[1763282944462,0.67338718,96139.0,96138.0,0.00145022]
[1763282944657,0.67338718,96139.0,96138.0,0.00245022]
[1763282947298,0.69286284,96139.0,96138.0,0.00245022]
[1763282973593,0.20806025,96126.0,96125.0,0.09362468]
[1763282973801,0.23504704,96126.0,96125.0,0.09362468]
[1763282975454,0.23504704,96126.0,96125.0,0.09562468]
[1763282975614,0.31836704,96126.0,96125.0,0.09562468]
[1763282985745,0.73679825,96126.0,96125.0,0.09562468]
[1763282985926,0.75630491,96126.0,96125.0,0.09562468]
[1763282986915,0.66086956,96126.0,96125.0,0.09562468]
[1763282988454,0.64136704,96126.0,96125.0,0.09562468]
[1763283002077,0.64136704,96126.0,96125.0,0.002]
[1763283002297,0.20810788,96104.0,96103.0,0.09362468]
[1763283002521,0.23664788,96104.0,96103.0,0.09362468]
[1763283002746,0.22015788,96104.0,96103.0,0.09362468]
[1763283003793,0.24708475,96104.0,96103.0,0.09362468]
[1763283004010,0.24708475,96104.0,96103.0,0.09462468]
[1763283004446,0.24708475,96104.0,96103.0,0.09562468]
[1763283005135,0.24708475,96104.0,96103.0,0.09462468]
[1763283005626,0.24708475,96104.0,96103.0,0.09562468]
[1763283006316,0.33044475,96104.0,96103.0,0.09562468]
[1763283009218,0.32000788,96104.0,96103.0,0.09562468]
[1763283011986,0.30351788,96104.0,96103.0,0.09562468]
[1763283015022,0.20810788,96104.0,96103.0,0.09562468]
[1763283015180,0.29146788,96104.0,96103.0,0.09562468]
[1763283016818,0.12086092,96120.0,96103.0,0.09562468]
[1763283017029,0.08336,96104.0,96103.0,0.09562468]
[1763283017589,0.29146788,96104.0,96103.0,0.09362468]
[1763283018053,0.08336,96104.0,96103.0,0.09462468]
[1763283018489,0.08336,96104.0,96103.0,0.30173472]
[1763283018634,0.08336,96104.0,96103.0,0.30273472]
[1763283018841,0.08336,96104.0,96103.0,0.30473472]
[1763283019043,0.08336,96104.0,96103.0,0.09662468]
[1763283019664,0.08336,96104.0,96103.0,0.30473472]
[1763283020277,0.08336,96104.0,96103.0,0.09662468]
[1763283020485,0.08336,96104.0,96103.0,0.30473472]
[1763283020663,0.08336,96104.0,96103.0,0.09662468]
[1763283020908,0.08336,96104.0,96103.0,0.30473472]
[1763283025143,0.29146788,96104.0,96103.0,0.09662468]
[1763283025349,0.08336,96104.0,96103.0,0.09662468]
[1763283025752,0.08336,96104.0,96103.0,0.30473472]
[1763283036017,0.08336,96104.0,96103.0,0.09662468]
[1763283036222,0.29146788,96104.0,96103.0,0.12788071]
[1763283036442,0.08336,96104.0,96103.0,0.12788071]
[1763283037050,0.08336,96104.0,96103.0,0.33599075]
[1763283037318,0.29146788,96104.0,96103.0,0.12788071]
[1763283037439,0.08336,96104.0,96103.0,0.12788071]
[1763283042395,0.29146788,96104.0,96103.0,0.12788071]
[1763283046609,0.08336,96104.0,96103.0,0.12788071]
[1763283046950,0.08336,96104.0,96103.0,0.33599075]
[1763283047310,0.08336,96104.0,96103.0,0.12788071]
[1763283047750,0.29146788,96104.0,96103.0,0.12788071]
[1763283047952,0.08336,96104.0,96103.0,0.12788071]
[1763283048146,0.29146788,96104.0,96103.0,0.12788071]
[1763283051412,0.08336,96104.0,96103.0,0.12788071]
[1763283051607,0.08336,96104.0,96103.0,0.33599075]
[1763283052038,0.08336,96105.0,96103.0,0.33599075]
[1763283052285,0.20810788,96104.0,96103.0,0.12788071]
[1763283052460,0.20810788,96104.0,96103.0,0.09662468]
[1763283052661,0.20810788,96104.0,96103.0,0.12788163]
[1763283052913,0.20810788,96104.0,96103.0,0.12488163]
[1763283053787,0.20810788,96104.0,96103.0,0.12588163]
[1763283053989,0.20810788,96104.0,96103.0,0.12488163]
[1763283054356,0.20810788,96104.0,96103.0,0.12588163]
[1763283054747,0.20810788,96104.0,96103.0,0.12788163]
[1763283055158,0.20810788,96104.0,96103.0,0.12588163]
[1763283055592,0.20810788,96104.0,96103.0,0.12788163]
[1763283059791,0.29146788,96104.0,96103.0,0.12788163]
[1763283061974,0.29146788,96104.0,96103.0,0.09662468]
[1763283064491,0.20810788,96104.0,96103.0,0.09662468]
[1763283080392,0.22450788,96104.0,96103.0,0.003]
[1763283081484,0.22450788,96104.0,96103.0,0.001]
[1763283081697,0.20814036,96089.0,96080.0,0.146]
[1763283082100,0.20814036,96089.0,96088.0,0.12488632]
[1763283082922,0.20814036,96089.0,96088.0,0.12702131]
[1763283083125,0.20814036,96089.0,96088.0,0.12802131]
[1763283085327,0.23588036,96089.0,96088.0,0.12802131]
[1763283088002,0.20814036,96089.0,96088.0,0.12802131]
[1763283092327,0.20812755,96095.0,96088.0,0.12802131]
[1763283092571,0.20812953,96094.0,96089.0,0.02081403]
[1763283092774,0.08336,96093.0,96090.0,0.02081382]
[1763283092974,0.08336,96093.0,96092.0,0.20813387]
[1763283093557,0.08336,96093.0,96092.0,0.23939391]
[1763283094227,0.08336,96093.0,96092.0,0.03126004]
[1763283094423,0.08336,96093.0,96092.0,0.26020729]
[1763283094629,0.08336,96093.0,96092.0,0.23939391]
[1763283094848,0.08336,96093.0,96092.0,0.24139391]
[1763283095245,0.08336,96093.0,96092.0,0.24339391]
[1763283095836,0.08336,96093.0,96092.0,0.03526004]
[1763283096258,0.2914917,96093.0,96092.0,0.03526004]
[1763283096678,0.2914917,96093.0,96092.0,0.03326004]
[1763283097027,0.2914917,96093.0,96092.0,0.03526004]
[1763283097430,0.2914917,96093.0,96092.0,0.03326004]
[1763283097932,0.2914917,96093.0,96092.0,0.03426004]
[1763283098479,0.3079617,96093.0,96092.0,0.003]
[1763283099707,0.3079617,96093.0,96092.0,0.001]
[1763283100097,0.3079617,96093.0,96092.0,0.002]
[1763283100527,0.3079617,96093.0,96092.0,0.001]
[1763283100727,0.20814036,96089.0,96088.0,0.09375967]
[1763283100930,0.22461036,96089.0,96088.0,0.09375967]
[1763283102216,0.22461036,96089.0,96088.0,0.09475967]
[1763283103880,0.22461036,96089.0,96088.0,0.09575967]
[1763283104960,0.22461036,96089.0,96088.0,0.00213499]
[1763283105395,0.25588141,96089.0,96088.0,0.00213499]
[1763283105813,0.25588141,96089.0,96088.0,0.00113499]
[1763283106947,0.25588141,96089.0,96088.0,0.00013499]
[1763283107271,0.25588141,96089.0,96088.0,0.00213499]
[1763283107671,0.20817936,96071.0,96060.0,0.0004]
[1763283107881,0.23642103,96061.0,96060.0,0.00050291]
[1763283108974,0.23642103,96061.0,96060.0,0.00350291]
[1763283110209,0.23642103,96061.0,96060.0,0.00050291]
[1763283110406,0.23642103,96061.0,96060.0,0.00150291]
[1763283110613,0.23642103,96061.0,96050.0,0.0004]
[1763283110614,0.20822271,96051.0,96050.0,0.0004]
[1763283110850,0.23644271,96051.0,96050.0,0.0004656]
[1763283111466,0.26772348,96051.0,96050.0,0.0004656]
[1763283111832,0.26772348,96051.0,96050.0,0.0024656]
[1763283112046,0.26772348,96051.0,96050.0,0.0034656]
[1763283112249,0.26772348,96051.0,96050.0,0.0014656]
[1763283112444,0.23644271,96051.0,96050.0,0.0014656]
[1763283112833,0.29158271,96051.0,96050.0,0.0014656]
[1763283113644,0.30805271,96051.0,96050.0,0.0024656]
[1763283116033,0.72758059,96051.0,96050.0,0.0024656]
[1763283116250,0.65187823,96051.0,96050.0,0.0024656]
[1763283116852,0.65187823,96051.0,96050.0,0.0004656]
[1763283116999,0.65187823,96051.0,96050.0,0.0014656]
[1763283117648,0.65187823,96051.0,96050.0,0.0024656]
[1763283119262,0.67125266,96051.0,96050.0,0.0024656]
[1763283119845,0.7211335,96051.0,96050.0,0.0024656]
[1763283120725,0.7211335,96051.0,96050.0,0.0014656]
[1763283120937,0.7211335,96051.0,96050.0,0.0004656]
[1763283121644,0.67125266,96051.0,96050.0,0.0004656]
[1763283127125,0.53124439,96041.0,96040.0,0.0004]
[1763283127329,0.57832882,96041.0,96040.0,0.00044502]
[1763283127857,0.58250085,96041.0,96040.0,0.00044502]
[1763283129185,0.53126608,96031.0,96030.0,0.0004]
[1763283129427,0.57835301,96031.0,96030.0,0.00085037]
[1763283129900,0.60964432,96031.0,96030.0,0.00085037]
[1763283130622,0.60964432,96031.0,96030.0,0.00185037]
[1763283138315,0.61935464,96031.0,96030.0,0.00185037]
[1763283138522,0.72302402,96031.0,96030.0,0.00185037]
[1763283138707,0.53128777,96021.0,96020.0,0.0004]
[1763283138921,0.5783747,96021.0,96020.0,0.00044502]
[1763283139335,0.609671,96021.0,96020.0,0.00044502]
[1763283139548,0.61938218,96021.0,96020.0,0.00044502]
[1763283139745,0.61938218,96021.0,96020.0,0.00144502]
[1763283139946,0.61938218,96021.0,96020.0,0.00244502]
[1763283140154,0.61938218,96021.0,96020.0,0.00144502]
[1763283141212,0.61938218,96021.0,96020.0,0.00044502]
[1763283145260,0.70282218,96021.0,96020.0,0.00044502]
[1763283150121,0.67152588,96021.0,96020.0,0.00044502]
[1763283152680,0.58808588,96021.0,96020.0,0.00044502]
[1763283152880,0.67152588,96021.0,96020.0,0.00044502]
[1763283154538,0.58808588,96021.0,96020.0,0.00044502]
[1763283154714,0.3111047,96021.0,96020.0,0.00044502]
[1763283156261,0.2276647,96021.0,96020.0,0.00144502]
[1763283156471,0.2276647,96021.0,96020.0,0.00244502]
[1763283156663,0.3111047,96021.0,96020.0,0.00244502]
[1763283156875,0.3111047,96021.0,96020.0,0.00144502]
[1763283157294,0.22777508,96021.0,96020.0,0.00244502]
[1763283157498,0.31121508,96021.0,96020.0,0.00244502]
[1763283158484,0.22777508,96021.0,96020.0,0.00244502]
[1763283158687,0.31121508,96021.0,96020.0,0.00244502]
[1763283158823,0.22777508,96021.0,96020.0,0.00244502]
[1763283159020,0.31121508,96021.0,96020.0,0.00244502]
[1763283159222,0.10292731,96021.0,96020.0,0.00244502]
[1763283159640,0.01948731,96021.0,96020.0,0.00244502]
[1763283159840,0.10292731,96021.0,96020.0,0.00244502]
[1763283160230,0.22777508,96021.0,96020.0,0.00244502]
[1763283160437,0.31121508,96021.0,96020.0,0.00244502]
[1763283161295,0.08344,96021.0,96020.0,0.00244502]
[1763283161516,0.29172777,96021.0,96020.0,0.00244502]
[1763283161722,0.20828777,96021.0,96020.0,0.00244502]
[1763283161932,0.29172777,96021.0,96020.0,0.00244502]
[1763283169812,0.08344,96021.0,96020.0,0.00244502]
[1763283170015,0.29172777,96021.0,96020.0,0.00244502]